[Event "Titled Tuesday Blitz September 28 2021"]
[White "Zubov, Alexander"]
[Black "Kamsky, Gata"]
[WhiteFideId "14109409"]
[BlackFideId "2000024"]
[WhiteElo "2973"]
[BlackElo "2909"]
[Result "1-0"]
[Round "06"]
[TimeControl "180+1"]
[Date "2021.09.28"]
[WhiteClock "0:00:04"]
[BlackClock "0:00:04"]

1. d4 {[%clk 0:03:00]}  d5 {[%clk 0:02:59]} 2. c4 {[%clk 0:03:00]}  c6 {[%clk 0:02:59]} 3. Nf3 {[%clk 0:02:59]}  Nf6 {[%clk 0:02:59]} 4. Nc3 {[%clk 0:02:58]}  a6 {[%clk 0:02:59]} 5. c5 {[%clk 0:02:55]}  g6 {[%clk 0:02:59]} 6. Bf4 {[%clk 0:02:51]}  Nh5 {[%clk 0:02:58]} 7. Bg5 {[%clk 0:02:28]}  Bg7 {[%clk 0:02:58]} 8. h3 {[%clk 0:02:27]}  O-O {[%clk 0:02:57]} 9. e4 {[%clk 0:02:23]}  dxe4 {[%clk 0:02:56]} 10. Nxe4 {[%clk 0:02:23]}  Be6 {[%clk 0:02:40]} 11. Be2 {[%clk 0:02:07]}  Nd7 {[%clk 0:02:37]} 12. O-O {[%clk 0:01:59]}  Nhf6 {[%clk 0:02:34]} 13. Nc3 {[%clk 0:01:55]}  b6 {[%clk 0:02:21]} 14. cxb6 {[%clk 0:01:51]}  Qxb6 {[%clk 0:02:19]} 15. Na4 {[%clk 0:01:50]}  Qa7 {[%clk 0:02:18]} 16. Rc1 {[%clk 0:01:36]}  Rfc8 {[%clk 0:02:11]} 17. b3 {[%clk 0:01:35]}  h6 {[%clk 0:02:09]} 18. Bd2 {[%clk 0:01:28]}  a5 {[%clk 0:02:07]} 19. Re1 {[%clk 0:01:19]}  Bd5 {[%clk 0:02:06]} 20. Be3 {[%clk 0:01:14]}  e6 {[%clk 0:02:05]} 21. Ne5 {[%clk 0:01:09]}  Qb8 {[%clk 0:02:00]} 22. Bf3 {[%clk 0:00:58]}  Nxe5 {[%clk 0:01:46]} 23. dxe5 {[%clk 0:00:58]}  Nd7 {[%clk 0:01:42]} 24. Bd4 {[%clk 0:00:46]}  Bxf3 {[%clk 0:01:30]} 25. Qxf3 {[%clk 0:00:45]}  Nxe5 {[%clk 0:01:30]} 26. Qe3 {[%clk 0:00:25]}  Nd7 {[%clk 0:01:26]} 27. Bxg7 {[%clk 0:00:25]}  Kxg7 {[%clk 0:01:25]} 28. Red1 {[%clk 0:00:19]}  Ra7 {[%clk 0:01:19]} 29. Rd4 {[%clk 0:00:09]}  Nf6 {[%clk 0:01:18]} 30. Nc5 {[%clk 0:00:07]}  e5 {[%clk 0:01:12]} 31. Rdc4 {[%clk 0:00:05]}  Rd8 {[%clk 0:01:11]} 32. Nd3 {[%clk 0:00:04]}  e4 {[%clk 0:01:07]} 33. Nc5 {[%clk 0:00:04]}  Re7 {[%clk 0:01:05]} 34. Qc3 {[%clk 0:00:03]}  Qe5 {[%clk 0:01:02]} 35. Qxa5 {[%clk 0:00:03]}  Rde8 {[%clk 0:00:45]} 36. Qd2 {[%clk 0:00:03]}  e3 {[%clk 0:00:33]} 37. Qxe3 {[%clk 0:00:03]}  Qxe3 {[%clk 0:00:33]} 38. fxe3 {[%clk 0:00:04]}  Rxe3 {[%clk 0:00:33]} 39. a4 {[%clk 0:00:04]}  Re2 {[%clk 0:00:32]} 40. R4c2 {[%clk 0:00:04]}  Re1+ {[%clk 0:00:26]} 41. Kh2 {[%clk 0:00:03]}  Rxc1 {[%clk 0:00:23]} 42. Rxc1 {[%clk 0:00:04]}  Re2 {[%clk 0:00:21]} 43. Ra1 {[%clk 0:00:04]}  Re5 {[%clk 0:00:19]} 44. b4 {[%clk 0:00:04]}  Nd5 {[%clk 0:00:19]} 45. Na6 {[%clk 0:00:02]}  Re4 {[%clk 0:00:17]} 46. a5 {[%clk 0:00:03]}  Nxb4 {[%clk 0:00:15]} 47. Nc5 {[%clk 0:00:03]}  Rc4 {[%clk 0:00:13]} 48. a6 {[%clk 0:00:03]}  Nd5 {[%clk 0:00:13]} 49. a7 {[%clk 0:00:03]}  Nb6 {[%clk 0:00:12]} 50. Nd7 {[%clk 0:00:02]}  Na8 {[%clk 0:00:12]} 51. Kg3 {[%clk 0:00:03]}  Rd4 {[%clk 0:00:11]} 52. Nb8 {[%clk 0:00:02]}  c5 {[%clk 0:00:11]} 53. Kf3 {[%clk 0:00:03]}  c4 {[%clk 0:00:11]} 54. Ke3 {[%clk 0:00:03]}  Rd3+ {[%clk 0:00:11]} 55. Ke2 {[%clk 0:00:04]}  Rd6 {[%clk 0:00:10]} 56. Rc1 {[%clk 0:00:03]}  Re6+ {[%clk 0:00:10]} 57. Kf3 {[%clk 0:00:03]}  Re7 {[%clk 0:00:10]} 58. Nc6 {[%clk 0:00:03]}  Rc7 {[%clk 0:00:10]} 59. Rxc4 {[%clk 0:00:03]}  Nb6 {[%clk 0:00:11]} 60. Rc1 {[%clk 0:00:03]}  h5 {[%clk 0:00:10]} 61. Ke4 {[%clk 0:00:03]}  g5 {[%clk 0:00:10]} 62. Kd4 {[%clk 0:00:04]}  Na8 {[%clk 0:00:08]} 63. Kc5 {[%clk 0:00:04]}  Rd7 {[%clk 0:00:07]} 64. Rc2 {[%clk 0:00:04]}  Nc7 {[%clk 0:00:07]} 65. Rb2 {[%clk 0:00:03]}  Rd5+ {[%clk 0:00:05]} 66. Kb6 {[%clk 0:00:03]}  Na8+ {[%clk 0:00:04]} 67. Kb7 {[%clk 0:00:03]}  Rd6 {[%clk 0:00:04]} 68. Kxa8 {[%clk 0:00:04]}  Rxc6 {[%clk 0:00:04]} 69. Kb7 {[%clk 0:00:04]} 1-0


[Site "https://www.chess.com"]

[Event "Titled Tuesday Blitz September 28 2021"]
[White "Azarov, Sergei"]
[Black "Saya, Ethan"]
[WhiteFideId "13501470"]
[BlackFideId "26095181"]
[WhiteElo "2494"]
[BlackElo "2217"]
[Result "1-0"]
[Round "07"]
[TimeControl "180+1"]
[Date "2021.09.28"]
[WhiteClock "0:01:34"]
[BlackClock "0:01:03"]

1. e4 {[%clk 0:03:00]}  d5 {[%clk 0:02:58]} 2. exd5 {[%clk 0:03:00]}  Qxd5 {[%clk 0:02:59]} 3. Nc3 {[%clk 0:03:00]}  Qa5 {[%clk 0:02:59]} 4. d4 {[%clk 0:03:01]}  Nf6 {[%clk 0:02:59]} 5. Nf3 {[%clk 0:03:01]}  c6 {[%clk 0:02:56]} 6. Bc4 {[%clk 0:03:00]}  Bf5 {[%clk 0:02:56]} 7. Bd2 {[%clk 0:02:59]}  e6 {[%clk 0:02:56]} 8. Nd5 {[%clk 0:02:57]}  Qd8 {[%clk 0:02:55]} 9. Nxf6+ {[%clk 0:02:57]}  Qxf6 {[%clk 0:02:56]} 10. Bb3 {[%clk 0:02:54]}  Bg4 {[%clk 0:02:53]} 11. Qe2 {[%clk 0:02:43]}  Bd6 {[%clk 0:02:36]} 12. O-O-O {[%clk 0:02:38]}  Bxf3 {[%clk 0:02:36]} 13. gxf3 {[%clk 0:02:39]}  Bf4 {[%clk 0:02:36]} 14. d5 {[%clk 0:02:27]}  cxd5 {[%clk 0:02:19]} 15. Qb5+ {[%clk 0:02:09]}  Nd7 {[%clk 0:02:16]} 16. Qxb7 {[%clk 0:02:06]}  Rd8 {[%clk 0:01:37]} 17. Qxa7 {[%clk 0:02:05]}  O-O {[%clk 0:01:34]} 18. Bxf4 {[%clk 0:02:05]}  Qxf4+ {[%clk 0:01:34]} 19. Qe3 {[%clk 0:02:05]}  Qb4 {[%clk 0:01:32]} 20. c3 {[%clk 0:02:02]}  Qb5 {[%clk 0:01:28]} 21. Rhg1 {[%clk 0:01:59]}  Rb8 {[%clk 0:01:24]} 22. h4 {[%clk 0:01:54]}  Nc5 {[%clk 0:01:21]} 23. Rxg7+ {[%clk 0:01:51]}  Kh8 {[%clk 0:01:19]} 24. Qh6 {[%clk 0:01:40]}  Nd3+ {[%clk 0:01:03]} 25. Kb1 {[%clk 0:01:34]} 1-0


[Site "https://www.chess.com"]

[Event "Titled Tuesday Blitz September 28 2021"]
[White "Baskin, Robert"]
[Black "Nurmanova, Alua"]
[WhiteFideId "24662402"]
[BlackFideId "13729390"]
[WhiteElo "2521"]
[BlackElo "1869"]
[Result "1/2-1/2"]
[Round "07"]
[TimeControl "180+1"]
[Date "2021.09.28"]
[WhiteClock "0:00:04"]
[BlackClock "0:00:04"]

1. e4 {[%clk 0:03:00]}  c5 {[%clk 0:02:59]} 2. Nf3 {[%clk 0:02:59]}  d6 {[%clk 0:02:59]} 3. Bb5+ {[%clk 0:02:55]}  Bd7 {[%clk 0:02:58]} 4. Bxd7+ {[%clk 0:02:51]}  Nxd7 {[%clk 0:02:59]} 5. O-O {[%clk 0:02:50]}  Ngf6 {[%clk 0:02:59]} 6. Qe2 {[%clk 0:02:49]}  e6 {[%clk 0:02:59]} 7. b3 {[%clk 0:02:44]}  Be7 {[%clk 0:02:56]} 8. Bb2 {[%clk 0:02:43]}  O-O {[%clk 0:02:56]} 9. c4 {[%clk 0:02:43]}  a6 {[%clk 0:02:56]} 10. d4 {[%clk 0:02:42]}  cxd4 {[%clk 0:02:57]} 11. Nxd4 {[%clk 0:02:43]}  Rc8 {[%clk 0:02:56]} 12. Nc3 {[%clk 0:02:37]}  Qa5 {[%clk 0:02:53]} 13. Rac1 {[%clk 0:02:23]}  Rfe8 {[%clk 0:02:48]} 14. Kh1 {[%clk 0:02:21]}  Bf8 {[%clk 0:02:29]} 15. f4 {[%clk 0:02:19]}  Qh5 {[%clk 0:02:20]} 16. Qxh5 {[%clk 0:02:05]}  Nxh5 {[%clk 0:02:20]} 17. g4 {[%clk 0:02:06]}  Nhf6 {[%clk 0:02:20]} 18. g5 {[%clk 0:02:04]}  Nh5 {[%clk 0:02:20]} 19. f5 {[%clk 0:01:58]}  Ne5 {[%clk 0:02:15]} 20. Rcd1 {[%clk 0:01:55]}  g6 {[%clk 0:02:03]} 21. f6 {[%clk 0:01:48]}  h6 {[%clk 0:01:58]} 22. h4 {[%clk 0:01:42]}  Ng3+ {[%clk 0:01:53]} 23. Kg2 {[%clk 0:01:43]}  Nxf1 {[%clk 0:01:52]} 24. Kxf1 {[%clk 0:01:41]}  Rc7 {[%clk 0:01:44]} 25. a4 {[%clk 0:01:39]}  Nc6 {[%clk 0:01:13]} 26. Nxc6 {[%clk 0:01:28]}  bxc6 {[%clk 0:01:14]} 27. Rd3 {[%clk 0:01:20]}  Rb8 {[%clk 0:01:09]} 28. Nb1 {[%clk 0:01:19]}  Rcb7 {[%clk 0:01:05]} 29. Nd2 {[%clk 0:01:18]}  Rd7 {[%clk 0:00:57]} 30. Nf3 {[%clk 0:01:13]}  Rdb7 {[%clk 0:00:51]} 31. Nd2 {[%clk 0:01:10]}  Rd8 {[%clk 0:00:40]} 32. Nf3 {[%clk 0:01:07]}  Rbd7 {[%clk 0:00:37]} 33. Ke2 {[%clk 0:01:00]}  d5 {[%clk 0:00:29]} 34. Ne5 {[%clk 0:00:59]}  Rc7 {[%clk 0:00:29]} 35. h5 {[%clk 0:00:51]}  gxh5 {[%clk 0:00:13]} 36. Rg3 {[%clk 0:00:49]}  Kh7 {[%clk 0:00:08]} 37. Rh3 {[%clk 0:00:42]}  Bd6 {[%clk 0:00:05]} 38. Rxh5 {[%clk 0:00:22]}  Bxe5 {[%clk 0:00:05]} 39. Rxh6+ {[%clk 0:00:22]}  Kg8 {[%clk 0:00:05]} 40. Bxe5 {[%clk 0:00:23]}  Rb7 {[%clk 0:00:06]} 41. g6 {[%clk 0:00:22]}  fxg6 {[%clk 0:00:06]} 42. f7+ {[%clk 0:00:21]}  Kxf7 {[%clk 0:00:06]} 43. Rh7+ {[%clk 0:00:22]}  Ke8 {[%clk 0:00:05]} 44. Rxb7 {[%clk 0:00:22]}  dxe4 {[%clk 0:00:06]} 45. Ke3 {[%clk 0:00:21]}  Rd1 {[%clk 0:00:05]} 46. Kxe4 {[%clk 0:00:21]}  g5 {[%clk 0:00:06]} 47. Rg7 {[%clk 0:00:21]}  Re1+ {[%clk 0:00:05]} 48. Kd4 {[%clk 0:00:20]}  c5+ {[%clk 0:00:05]} 49. Kxc5 {[%clk 0:00:20]}  Rxe5+ {[%clk 0:00:06]} 50. Kd6 {[%clk 0:00:21]}  Re3 {[%clk 0:00:05]} 51. b4 {[%clk 0:00:20]}  Rb3 {[%clk 0:00:03]} 52. b5 {[%clk 0:00:20]}  axb5 {[%clk 0:00:03]} 53. axb5 {[%clk 0:00:19]}  Rb4 {[%clk 0:00:04]} 54. Kc5 {[%clk 0:00:19]}  Rb1 {[%clk 0:00:04]} 55. Rxg5 {[%clk 0:00:18]}  Kf7 {[%clk 0:00:04]} 56. b6 {[%clk 0:00:18]}  Kf6 {[%clk 0:00:04]} 57. Rg3 {[%clk 0:00:18]}  e5 {[%clk 0:00:05]} 58. Kc6 {[%clk 0:00:17]}  e4 {[%clk 0:00:04]} 59. b7 {[%clk 0:00:17]}  Kf5 {[%clk 0:00:05]} 60. Kc7 {[%clk 0:00:16]}  Kf4 {[%clk 0:00:03]} 61. Ra3 {[%clk 0:00:16]}  e3 {[%clk 0:00:03]} 62. c5 {[%clk 0:00:14]}  e2 {[%clk 0:00:02]} 63. Ra4+ {[%clk 0:00:14]}  Kf5 {[%clk 0:00:02]} 64. b8=Q {[%clk 0:00:07]}  Rxb8 {[%clk 0:00:03]} 65. Kxb8 {[%clk 0:00:08]}  e1=Q {[%clk 0:00:03]} 66. c6 {[%clk 0:00:07]}  Qb1+ {[%clk 0:00:03]} 67. Kc7 {[%clk 0:00:07]}  Kf6 {[%clk 0:00:03]} 68. Ra7 {[%clk 0:00:06]}  Ke6 {[%clk 0:00:03]} 69. Rb7 {[%clk 0:00:06]}  Qh7+ {[%clk 0:00:03]} 70. Kb8 {[%clk 0:00:06]}  Qg8+ {[%clk 0:00:03]} 71. Ka7 {[%clk 0:00:06]}  Qg1+ {[%clk 0:00:03]} 72. Ka8 {[%clk 0:00:06]}  Qa1+ {[%clk 0:00:03]} 73. Kb8 {[%clk 0:00:06]}  Qh8+ {[%clk 0:00:01]} 74. Ka7 {[%clk 0:00:06]}  Qa1+ {[%clk 0:00:02]} 75. Kb6 {[%clk 0:00:06]}  Qb2+ {[%clk 0:00:02]} 76. Kc7 {[%clk 0:00:06]}  Qe5+ {[%clk 0:00:03]} 77. Kc8 {[%clk 0:00:07]}  Qh8+ {[%clk 0:00:03]} 78. Kc7 {[%clk 0:00:06]}  Qe5+ {[%clk 0:00:04]} 79. Kb6 {[%clk 0:00:07]}  Qb2+ {[%clk 0:00:04]} 80. Ka7 {[%clk 0:00:07]}  Qa3+ {[%clk 0:00:04]} 81. Kb8 {[%clk 0:00:06]}  Qf8+ {[%clk 0:00:04]} 82. Ka7 {[%clk 0:00:05]}  Qa3+ {[%clk 0:00:04]} 83. Kb6 {[%clk 0:00:03]}  Qb4+ {[%clk 0:00:04]} 84. Ka6 {[%clk 0:00:03]}  Qa3+ {[%clk 0:00:04]} 85. Kb5 {[%clk 0:00:03]}  Qb2+ {[%clk 0:00:04]} 86. Kc5 {[%clk 0:00:04]}  Qe5+ {[%clk 0:00:04]} 87. Kb6 {[%clk 0:00:04]}  Qb2+ {[%clk 0:00:04]} 1/2-1/2


[Site "https://www.chess.com"]

[Event "Titled Tuesday Blitz September 28 2021"]
[White "Berezin, Viktor"]
[Black "Shahade, Gregory"]
[WhiteFideId "14107872"]
[BlackFideId "2009064"]
[WhiteElo "2310"]
[BlackElo "2565"]
[Result "1-0"]
[Round "07"]
[TimeControl "180+1"]
[Date "2021.09.28"]
[WhiteClock "0:00:41"]
[BlackClock "0:00:03"]

1. d4 {[%clk 0:03:00]}  Nf6 {[%clk 0:02:59]} 2. Nf3 {[%clk 0:02:52]}  g6 {[%clk 0:02:59]} 3. g3 {[%clk 0:02:53]}  Bg7 {[%clk 0:02:58]} 4. Bg2 {[%clk 0:02:53]}  d5 {[%clk 0:02:57]} 5. O-O {[%clk 0:02:53]}  O-O {[%clk 0:02:58]} 6. c4 {[%clk 0:02:53]}  dxc4 {[%clk 0:02:59]} 7. Na3 {[%clk 0:02:50]}  c3 {[%clk 0:02:59]} 8. bxc3 {[%clk 0:02:51]}  c5 {[%clk 0:03:00]} 9. e3 {[%clk 0:02:49]}  Nc6 {[%clk 0:03:00]} 10. Bb2 {[%clk 0:02:50]}  Bf5 {[%clk 0:02:55]} 11. Rc1 {[%clk 0:02:46]}  Qb6 {[%clk 0:02:45]} 12. Ba1 {[%clk 0:02:39]}  Rfd8 {[%clk 0:02:38]} 13. Qb3 {[%clk 0:02:36]}  Na5 {[%clk 0:02:21]} 14. Qxb6 {[%clk 0:02:11]}  axb6 {[%clk 0:02:22]} 15. Ne5 {[%clk 0:02:12]}  Ne4 {[%clk 0:01:42]} 16. g4 {[%clk 0:02:07]}  Bxe5 {[%clk 0:01:35]} 17. gxf5 {[%clk 0:02:02]}  Nd2 {[%clk 0:01:28]} 18. Rfd1 {[%clk 0:01:53]}  Bd6 {[%clk 0:01:13]} 19. Rxd2 {[%clk 0:01:48]}  cxd4 {[%clk 0:01:14]} 20. Nb5 {[%clk 0:01:47]}  dxe3 {[%clk 0:01:13]} 21. Rd5 {[%clk 0:01:28]}  exf2+ {[%clk 0:01:11]} 22. Kxf2 {[%clk 0:01:28]}  Bc5+ {[%clk 0:01:02]} 23. Nd4 {[%clk 0:01:24]}  Nc4 {[%clk 0:00:40]} 24. Rxd8+ {[%clk 0:01:15]}  Rxd8 {[%clk 0:00:41]} 25. Ke2 {[%clk 0:01:10]}  gxf5 {[%clk 0:00:32]} 26. Rd1 {[%clk 0:01:00]}  Ra8 {[%clk 0:00:30]} 27. Bd5 {[%clk 0:00:48]}  Rxa2+ {[%clk 0:00:13]} 28. Kf3 {[%clk 0:00:48]}  Ne5+ {[%clk 0:00:11]} 29. Kf4 {[%clk 0:00:47]}  Rf2+ {[%clk 0:00:07]} 30. Kg3 {[%clk 0:00:44]}  Rf3+ {[%clk 0:00:03]} 31. Nxf3 {[%clk 0:00:43]}  Ng6 {[%clk 0:00:03]} 32. Ng5 {[%clk 0:00:42]}  Bd6+ {[%clk 0:00:03]} 33. Kf2 {[%clk 0:00:41]}  Bxh2 {[%clk 0:00:02]} 34. Bxf7+ {[%clk 0:00:41]}  Kg7 {[%clk 0:00:03]} 35. c4+ {[%clk 0:00:41]}  Kh6 {[%clk 0:00:03]} 36. Bxg6 {[%clk 0:00:42]}  Kxg5 {[%clk 0:00:03]} 37. Bxh7 {[%clk 0:00:41]} 1-0


[Site "https://www.chess.com"]

[Event "Titled Tuesday Blitz September 28 2021"]
[White "Bluebaum, Matthias"]
[Black "Visakh N R"]
[WhiteFideId "24651516"]
[BlackFideId "25012223"]
[WhiteElo "2902"]
[BlackElo "2833"]
[Result "1-0"]
[Round "07"]
[TimeControl "180+1"]
[Date "2021.09.28"]
[WhiteClock "0:00:07"]
[BlackClock "0:00:01"]

1. d4 {[%clk 0:03:00]}  Nf6 {[%clk 0:02:58]} 2. Nf3 {[%clk 0:03:01]}  e6 {[%clk 0:02:58]} 3. Bf4 {[%clk 0:03:01]}  c5 {[%clk 0:02:55]} 4. e3 {[%clk 0:03:01]}  Nc6 {[%clk 0:02:56]} 5. c3 {[%clk 0:03:01]}  d5 {[%clk 0:02:55]} 6. Nbd2 {[%clk 0:03:02]}  Bd6 {[%clk 0:02:55]} 7. Bg3 {[%clk 0:03:02]}  O-O {[%clk 0:02:56]} 8. Bd3 {[%clk 0:03:03]}  Qe7 {[%clk 0:02:52]} 9. Ne5 {[%clk 0:03:00]}  Nd7 {[%clk 0:02:33]} 10. Nxd7 {[%clk 0:02:53]}  Qxd7 {[%clk 0:02:33]} 11. dxc5 {[%clk 0:02:50]}  Bxc5 {[%clk 0:02:32]} 12. O-O {[%clk 0:02:47]}  Bd6 {[%clk 0:02:28]} 13. Bxd6 {[%clk 0:02:17]}  Qxd6 {[%clk 0:02:29]} 14. c4 {[%clk 0:02:18]}  Rd8 {[%clk 0:02:25]} 15. Be2 {[%clk 0:01:57]}  d4 {[%clk 0:02:21]} 16. exd4 {[%clk 0:01:41]}  Nxd4 {[%clk 0:02:16]} 17. Nf3 {[%clk 0:01:42]}  Nxe2+ {[%clk 0:02:12]} 18. Qxe2 {[%clk 0:01:41]}  Bd7 {[%clk 0:02:12]} 19. Rfd1 {[%clk 0:01:39]}  Qc7 {[%clk 0:02:12]} 20. Ne5 {[%clk 0:01:39]}  Be8 {[%clk 0:02:10]} 21. b3 {[%clk 0:01:32]}  a5 {[%clk 0:02:01]} 22. h4 {[%clk 0:01:29]}  a4 {[%clk 0:01:59]} 23. Qe3 {[%clk 0:01:23]}  axb3 {[%clk 0:01:49]} 24. axb3 {[%clk 0:01:23]}  Rxa1 {[%clk 0:01:49]} 25. Rxa1 {[%clk 0:01:24]}  f6 {[%clk 0:01:49]} 26. Nd3 {[%clk 0:01:20]}  e5 {[%clk 0:01:48]} 27. Ra7 {[%clk 0:01:09]}  Bc6 {[%clk 0:01:31]} 28. Nb4 {[%clk 0:00:57]}  h6 {[%clk 0:00:55]} 29. Kh2 {[%clk 0:00:42]}  Qd6 {[%clk 0:00:43]} 30. Nxc6 {[%clk 0:00:31]}  Qxc6 {[%clk 0:00:44]} 31. Qf3 {[%clk 0:00:24]}  Rd4 {[%clk 0:00:23]} 32. Rxb7 {[%clk 0:00:21]}  Qd6 {[%clk 0:00:13]} 33. g3 {[%clk 0:00:18]}  Rd2 {[%clk 0:00:12]} 34. Kg2 {[%clk 0:00:17]}  Qd4 {[%clk 0:00:10]} 35. Rb8+ {[%clk 0:00:17]}  Kf7 {[%clk 0:00:10]} 36. h5 {[%clk 0:00:06]}  e4 {[%clk 0:00:10]} 37. Qf4 {[%clk 0:00:06]}  Rd3 {[%clk 0:00:06]} 38. Rb7+ {[%clk 0:00:06]}  Kg8 {[%clk 0:00:06]} 39. Qg4 {[%clk 0:00:06]}  f5 {[%clk 0:00:04]} 40. Rb8+ {[%clk 0:00:05]}  Kf7 {[%clk 0:00:03]} 41. Qxf5+ {[%clk 0:00:06]}  Qf6 {[%clk 0:00:04]} 42. Qxf6+ {[%clk 0:00:06]}  Kxf6 {[%clk 0:00:03]} 43. c5 {[%clk 0:00:07]}  Rc3 {[%clk 0:00:04]} 44. b4 {[%clk 0:00:07]}  e3 {[%clk 0:00:04]} 45. fxe3 {[%clk 0:00:07]}  Rxe3 {[%clk 0:00:05]} 46. c6 {[%clk 0:00:08]}  Rc3 {[%clk 0:00:05]} 47. b5 {[%clk 0:00:08]}  Kf5 {[%clk 0:00:05]} 48. Rb7 {[%clk 0:00:08]}  Rc2+ {[%clk 0:00:02]} 49. Kf3 {[%clk 0:00:08]}  Rc3+ {[%clk 0:00:02]} 50. Ke2 {[%clk 0:00:08]}  Kg4 {[%clk 0:00:01]} 51. Rxg7+ {[%clk 0:00:07]} 1-0


[Site "https://www.chess.com"]

[Event "Titled Tuesday Blitz September 28 2021"]
[White "Bortnyk, Olexandr"]
[Black "Andreikin, Dmitry"]
[WhiteFideId "14120828"]
[BlackFideId "4158814"]
[WhiteElo "2967"]
[BlackElo "3026"]
[Result "0-1"]
[Round "07"]
[TimeControl "180+1"]
[Date "2021.09.28"]
[WhiteClock "0:00:03"]
[BlackClock "0:00:05"]

1. e4 {[%clk 0:03:00]}  e5 {[%clk 0:02:58]} 2. Bc4 {[%clk 0:02:58]}  Nf6 {[%clk 0:02:58]} 3. d3 {[%clk 0:02:58]}  Nc6 {[%clk 0:02:58]} 4. Nc3 {[%clk 0:02:58]}  Na5 {[%clk 0:02:57]} 5. Bg5 {[%clk 0:02:57]}  Nxc4 {[%clk 0:02:55]} 6. dxc4 {[%clk 0:02:58]}  Be7 {[%clk 0:02:55]} 7. Qd3 {[%clk 0:02:53]}  d6 {[%clk 0:02:53]} 8. O-O-O {[%clk 0:02:46]}  Be6 {[%clk 0:02:52]} 9. Nge2 {[%clk 0:02:43]}  h6 {[%clk 0:02:42]} 10. Bxf6 {[%clk 0:02:40]}  Bxf6 {[%clk 0:02:43]} 11. Kb1 {[%clk 0:02:39]}  c6 {[%clk 0:02:38]} 12. f4 {[%clk 0:02:33]}  exf4 {[%clk 0:02:29]} 13. Nxf4 {[%clk 0:02:32]}  Be5 {[%clk 0:01:53]} 14. Nxe6 {[%clk 0:02:28]}  fxe6 {[%clk 0:01:54]} 15. c5 {[%clk 0:01:48]}  dxc5 {[%clk 0:01:39]} 16. Qh3 {[%clk 0:01:44]}  Qg5 {[%clk 0:01:13]} 17. Qxe6+ {[%clk 0:01:37]}  Qe7 {[%clk 0:01:13]} 18. Qf5 {[%clk 0:00:34]}  Rf8 {[%clk 0:01:01]} 19. Qh5+ {[%clk 0:00:31]}  Rf7 {[%clk 0:01:01]} 20. Rhf1 {[%clk 0:00:27]}  Bd4 {[%clk 0:00:38]} 21. Ne2 {[%clk 0:00:15]}  Rd8 {[%clk 0:00:26]} 22. c3 {[%clk 0:00:05]}  Qxe4+ {[%clk 0:00:26]} 23. Ka1 {[%clk 0:00:05]}  g6 {[%clk 0:00:27]} 24. Qxh6 {[%clk 0:00:02]}  Rxf1 {[%clk 0:00:26]} 25. Rxf1 {[%clk 0:00:03]}  Qxe2 {[%clk 0:00:27]} 26. Qf8+ {[%clk 0:00:02]}  Kd7 {[%clk 0:00:27]} 27. Qf7+ {[%clk 0:00:02]}  Kc8 {[%clk 0:00:25]} 28. cxd4 {[%clk 0:00:02]}  cxd4 {[%clk 0:00:25]} 29. Rb1 {[%clk 0:00:01]}  d3 {[%clk 0:00:23]} 30. Qb3 {[%clk 0:00:01]}  d2 {[%clk 0:00:20]} 31. Rd1 {[%clk 0:00:01]}  Re8 {[%clk 0:00:17]} 32. Kb1 {[%clk 0:00:02]}  Qe4+ {[%clk 0:00:17]} 33. Qc2 {[%clk 0:00:02]}  Qxg2 {[%clk 0:00:16]} 34. Qxd2 {[%clk 0:00:03]}  Qxd2 {[%clk 0:00:13]} 35. Rxd2 {[%clk 0:00:03]}  Re5 {[%clk 0:00:11]} 36. Rg2 {[%clk 0:00:02]}  Re6 {[%clk 0:00:11]} 37. Rd2 {[%clk 0:00:02]}  Kc7 {[%clk 0:00:11]} 38. a3 {[%clk 0:00:03]}  c5 {[%clk 0:00:11]} 39. Rd5 {[%clk 0:00:03]}  Kc6 {[%clk 0:00:10]} 40. Rg5 {[%clk 0:00:04]}  a5 {[%clk 0:00:08]} 41. h4 {[%clk 0:00:04]}  a4 {[%clk 0:00:09]} 42. Kc2 {[%clk 0:00:04]}  b5 {[%clk 0:00:08]} 43. h5 {[%clk 0:00:04]}  gxh5 {[%clk 0:00:08]} 44. Rxh5 {[%clk 0:00:05]}  Rd6 {[%clk 0:00:08]} 45. Rh8 {[%clk 0:00:05]}  Rg6 {[%clk 0:00:08]} 46. Rd8 {[%clk 0:00:04]}  Rd6 {[%clk 0:00:08]} 47. Rb8 {[%clk 0:00:04]}  Rd7 {[%clk 0:00:07]} 48. Rc8+ {[%clk 0:00:04]}  Kd5 {[%clk 0:00:07]} 49. Rh8 {[%clk 0:00:03]}  Kc4 {[%clk 0:00:06]} 50. Ra8 {[%clk 0:00:02]}  Rh7 {[%clk 0:00:06]} 51. Ra5 {[%clk 0:00:02]}  Rh2+ {[%clk 0:00:06]} 52. Kc1 {[%clk 0:00:02]}  Rg2 {[%clk 0:00:06]} 53. Kb1 {[%clk 0:00:01]}  b4 {[%clk 0:00:05]} 54. axb4 {[%clk 0:00:01]}  cxb4 {[%clk 0:00:05]} 55. Ka2 {[%clk 0:00:02]}  a3 {[%clk 0:00:05]} 56. Rh5 {[%clk 0:00:02]}  Rxb2+ {[%clk 0:00:05]} 57. Ka1 {[%clk 0:00:02]}  Rg2 {[%clk 0:00:05]} 58. Rh3 {[%clk 0:00:02]}  b3 {[%clk 0:00:05]} 59. Rh4+ {[%clk 0:00:02]}  Kd5 {[%clk 0:00:05]} 60. Rh5+ {[%clk 0:00:03]}  Ke4 {[%clk 0:00:05]} 61. Rh1 {[%clk 0:00:03]}  Kf3 {[%clk 0:00:05]} 62. Rb1 {[%clk 0:00:03]}  Ra2# {[%clk 0:00:05]} 0-1


[Site "https://www.chess.com"]